[Event "Serbian-ch Semifinal 2024"]
[Site "Paracin"]
[Date "2024.02.05"]
[Round "1.1"]
[White "Spiric, Igor"]
[Black "Ivanisevic, Ivan"]
[Result "0-1"]
[ECO "A06"]
[WhiteElo "2268"]
[BlackElo "2517"]
[Annotator "TA"]
[PlyCount "56"]
[EventDate "2024.02.04"]
[EventType "swiss"]
[EventCountry "SRB"]
[SourceTitle "playchess.com"]
[Source "ChessBase"]
[SourceQuality "1"]
[TimeControl "40/5400+30:1800+30"]

{[%evp 9,56,-43,-41,-65,-61,-66,-70,-80,-74,-81,-81,-90,-81,-114,-92,-120,-122,-223,-220,-253,-241,-363,-368,-341,-310,-480,-455,-650,-605,-897,-907,-884,-899,-948,-943,-920,-957,-864,-600,-630,-606,-616,-613,-721,-493,-706,-715,-714,-713]} 1. Nf3 {[%emt 0:00:02]} d5 {[%emt 0:03:16]} 2. b3 {[%emt 0:00:14]} c5 {[%emt 0:00:20]} 3. Bb2 {[%emt 0:00:19]} f6 {[%emt 0:00:24]} 4. d3 {[%emt 0:03:26]} e5 {[%emt 0:00:22]} 5. e4 {[%emt 0:03:25]} d4 {[%emt 0:02:31]} 6. g3 {[%emt 0:00:17]} Nc6 {[%emt 0:00:10]} 7. Bg2 {[%emt 0:00:12]} Bg4 {[%emt 0:01:40]} 8. Nbd2 {[%emt 0:01:00] White is on the road to losing. Black is slightly better.} Qd7 {[%emt 0:00:19] Black is more active.} 9. h3 {[%emt 0:04:28]} Be6 {[%emt 0:03:12]} 10. Nh4 {[%emt 0:01:56]} Bd6 {[%emt 0:05:27]} 11. O-O {[%emt 0:06:59]} Nge7 {[%emt 0:01:23]} (11... Bxh3 $6 12. Qh5+ Kd8 13. Ng6 $11) 12. Nc4 {[%emt 0:13:59]} Bc7 {[%emt 0:00:29]} (12... Bxh3 $2 {loses.} 13. Bxh3 (13. Nxd6+ Qxd6 14. Bxh3 Kd8 $18) 13... Qxh3 14. Nxd6+ $18) 13. f4 {[%emt 0:00:23]} (13. Ba3 $17 {was worth a try.}) 13... exf4 $19 {[%emt 0:03:05]} (13... Bxh3 14. f5 Bxg2 15. Qh5+ g6 16. fxg6 $11) 14. gxf4 {[%emt 0:08:13]} Bxh3 {[%emt 0:02:50]} 15. f5 {[%emt 0:03:40]} (15. Bxh3 {keeps fighting.} Qxh3 16. Ng2) 15... Bxg2 {[%emt 0:00:24]} 16. Nxg2 {[%emt 0:07:56]} O-O-O {[%emt 0:01:07]} 17. a4 {[%emt 0:02:42]} (17. Bc1 $142) 17... g6 {[%emt 0:09:27] Black is clearly winning.} 18. Ba3 {[%emt 0:02:26]} (18. Bc1 $142 Rhg8 (18... gxf5 $2 19. Qh5 $19) 19. Bf4) 18... gxf5 {[%emt 0:01:22]} 19. exf5 {[%emt 0:00:18]} Rdg8 {[%emt 0:00:27]} 20. Qf3 {[%emt 0:01:32]} Rg3 {[%emt 0:01:28]} 21. Qe4 {[%emt 0:00:22]} Rhg8 {[%emt 0:00:32]} 22. Rf2 {[%emt 0:00:08] [#]} Nxf5 $1 {[%emt 0:00:43][%mdl 512]} 23. Re1 {[%emt 0:01:01] Against Ne3} R3g4 {[%emt 0:02:44]} 24. Qe6 {[%emt 0:02:26]} Qxe6 {[%emt 0:01:17]} 25. Rxe6 {[%emt 0:00:06]} Nh4 {[%emt 0:00:04]} 26. Ree2 {[%emt 0:00:24]} Bg3 {[%emt 0:01:47]} 27. Rxf6 {[%emt 0:00:42]} (27. Rf1 $142) 27... Nxg2 {[%emt 0:00:24]} 28. Rxg2 {[%emt 0:00:08] [#]} Bh2+ $1 {[%emt 0:00:20][%mdl 512] Weighted Error Value: White=0.72/Black=0.44.  Mistake:       	White=4     	---        Inaccurate:     	White=3     	---        OK:         	White=1     	Black=5      Best:        	---       	Black=1} 0-1

[Event "Serbian-ch Semifinal 2024"]
[Site "Paracin"]
[Date "2024.02.05"]
[Round "1.2"]
[White "Tilicheev, Viacheslav"]
[Black "Todorovic, Goran N"]
[Result "1-0"]
[ECO "A30"]
[WhiteElo "2487"]
[BlackElo "2263"]
[Annotator "TA"]
[PlyCount "69"]
[EventDate "2024.02.04"]
[EventType "swiss"]
[EventCountry "SRB"]
[SourceTitle "playchess.com"]
[Source "ChessBase"]
[SourceQuality "1"]
[TimeControl "40/5400+30:1800+30"]

{[%evp 18,69,33,29,33,32,32,22,37,21,31,21,44,55,30,22,20,24,10,23,19,20,18,26,18,13,52,-14,0,-17,5,15,18,16,6,0,0,-86,0,0,154,157,135,128,132,117,131,52,60,61,59,61,29997,189]} 1. Nf3 {[%emt 0:00:06]} Nf6 {[%emt 0:01:18]} 2. g3 {[%emt 0:00:33]} b6 {[%emt 0:00:46]} 3. Bg2 {[%emt 0:00:10]} Bb7 {[%emt 0:00:13]} 4. c4 {[%emt 0:00:44]} c5 {[%emt 0:00:44]} 5. O-O {[%emt 0:00:30]} g6 {[%emt 0:00:38]} 6. Nc3 {[%emt 0:00:17]} Bg7 {[%emt 0:00:11]} 7. d4 {[%emt 0:00:09]} cxd4 {[%emt 0:02:46]} 8. Qxd4 {[%emt 0:00:19]} d6 {[%emt 0:00:40]} 9. Rd1 {[%emt 0:05:49]} Nbd7 {[%emt 0:02:41]} 10. Be3 {[%emt 0:07:04]} Rc8 {[%emt 0:02:04]} 11. b3 {[%emt 0:17:28]} O-O {[%emt 0:14:03][%cal Of6e4] ...Ne4! is the strong threat.} 12. Qh4 {[%emt 0:00:09]} a6 {[%emt 0:04:24][%cal Ob6b5] The position is equal.} 13. Rac1 {[%emt 0:00:10]} Re8 {[%emt 0:01:55]} 14. Bh3 {[%emt 0:01:21]} Rc7 {[%emt 0:11:10]} 15. g4 {[%emt 0:03:48][%cal Bg3g4,Bg4g5][%mdl 32]} Qa8 {[%emt 0:16:10]} 16. Nd2 {[%emt 0:59:53]} b5 {[%emt 0:09:05]} 17. g5 {[%emt 0:00:00]} Nh5 {[%emt 0:01:12] [#]} 18. Nd5 $1 {[%emt 0:00:00]} Bxd5 {[%emt 0:01:31]} 19. cxd5 {[%emt 0:00:00]} Rec8 {[%emt 0:01:38] Black is weak on the light squares} 20. Rxc7 {[%emt 0:00:00]} Rxc7 {[%emt 0:00:33]} 21. Ne4 {[%emt 0:00:00]} Nf8 {[%emt 0:02:51]} 22. Bg4 {[%emt 0:00:00]} (22. Ng3 $14) 22... Rc2 $11 {[%emt 0:03:18]} 23. a4 {[%emt 0:00:00]} Ra2 {[%emt 0:01:55]} 24. Bxh5 {[%emt 0:00:00]} gxh5 {[%emt 0:00:12]} 25. Ng3 {[%emt 0:00:00]} Ng6 {[%emt 0:06:43]} 26. Qb4 {[%emt 0:00:00]} bxa4 {[%emt 0:05:51]} 27. Nxh5 {[%emt 0:00:00]} (27. bxa4 $11 Qc8 28. Rc1) 27... axb3 {[%emt 0:03:17]} ({Much weaker is} 27... Rxe2 $6 28. Qc4 Rxe3 29. fxe3 $11) (27... Qc8 $17 {Strongly threatening ...Qh3.} 28. Nxg7 Kxg7 29. bxa4 Rxe2) 28. Nxg7 {[%emt 0:00:00]} Kxg7 $2 {[%emt 0:02:54]} (28... Qc8 $1 $11 29. Nh5 (29. Qxb3 $2 {is the wrong capture.} Qg4+ 30. Kf1 Qxe2+ 31. Kg1 Qg4+ 32. Kf1 Nh4 $19) 29... b2) 29. Qxb3 $16 {[%emt 0:00:00]} Rxe2 {[%emt 0:01:42] [#] And now ...Qc8 would win.} 30. Kf1 $1 {[%emt 0:00:00]} (30. Qc4 Rxe3 31. fxe3 a5 $16) 30... Rxe3 {[%emt 0:00:29]} 31. Qxe3 {[%emt 0:00:00]} Qc8 {[%emt 0:01:08] Inhibits Qc3+.} 32. Qd4+ {[%emt 0:00:00]} (32. Rd4 $16) 32... Kg8 $14 {[%emt 0:02:28]} 33. Rb1 {[%emt 0:00:00]} Qh3+ {[%emt 0:00:00]} 34. Ke2 $1 {[%emt 0:00:39] Rb8+ would kill now.} Qxh2 $2 {[%emt 0:00:02][%mdl 8192]} (34... Qh5+ $14 35. Ke1 h6) 35. Rb8+ {[%emt 0:00:06] Weighted Error Value: White=0.12 (very precise) /Black=0.45.  Loses game:     	---       	Black=1      Mistake:       	White=3     	Black=2      Inaccurate:     	---       	Black=1      OK:         	White=9     	Black=11     Best:        	White=3     	Black=1      Strong:       	White=2     	---} 1-0

[Event "Serbian-ch Semifinal 2024"]
[Site "Paracin"]
[Date "2024.02.05"]
[Round "1.3"]
[White "Ivanovic, Marko"]
[Black "Pukshansky, Mikhail B"]
[Result "1/2-1/2"]
[ECO "D46"]
[WhiteElo "2245"]
[BlackElo "2405"]
[Annotator "TA"]
[PlyCount "120"]
[EventDate "2024.02.04"]
[EventType "swiss"]
[EventCountry "SRB"]
[SourceTitle "playchess.com"]
[Source "ChessBase"]
[SourceQuality "1"]
[TimeControl "40/5400+30:1800+30"]

{[%evp 22,120,20,2,23,1,6,6,10,11,5,12,10,10,4,6,23,-60,-42,-48,-44,-97,-102,-87,-54,-51,-48,-55,-51,-64,-17,-51,-1,-19,-23,-27,-23,-31,-30,-31,-31,-38,-26,-50,-13,-17,0,0,0,0,0,0,0,0,0,0,0,0,0,0,0,0,0,0,0,0,0,-38,0,0,0,0,0,0,0,0,0,0,0,0,0,0,0,0,0,0,0,0,0,0,0,0,0,0,0,0,0,0,0,0,0]} 1. d4 {[%emt 0:05:24]} d5 {[%emt 0:01:04]} 2. c4 {[%emt 0:00:09]} e6 {[%emt 0:00:29]} 3. Nc3 {[%emt 0:00:05]} c6 {[%emt 0:00:24]} 4. e3 {[%emt 0:05:39]} Nf6 {[%emt 0:01:11]} 5. Nf3 {[%emt 0:00:05]} Nbd7 {[%emt 0:00:15]} 6. Qc2 {[%emt 0:00:07]} Bd6 {[%emt 0:00:14]} 7. Bd3 {[%emt 0:00:06]} dxc4 {[%emt 0:02:26]} 8. Bxc4 {[%emt 0:00:35]} b5 {[%emt 0:00:16]} 9. Be2 {[%emt 0:00:22]} Bb7 {[%emt 0:00:58]} 10. O-O {[%emt 0:00:09]} O-O {[%emt 0:00:37]} 11. Rd1 {[%emt 0:00:13]} Qc7 {[%emt 0:02:10]} 12. h3 {[%emt 0:00:07]} Rfe8 {[%emt 0:02:02]} 13. e4 {[%emt 0:19:22]} e5 {[%emt 0:01:00]} 14. dxe5 {[%emt 0:00:27]} Nxe5 {[%emt 0:01:00]} 15. Bg5 {[%emt 0:00:23]} Nxf3+ {[%emt 0:03:27]} 16. Bxf3 {[%emt 0:00:50]} Qe7 {[%emt 0:00:42]} 17. Ne2 {[%emt 0:09:46]} h6 {[%emt 0:08:26]} 18. Be3 {[%emt 0:05:05]} a6 {[%emt 1:12:49][%cal Oe7c7]} 19. Rd3 {[%emt 0:36:36]} (19. Nd4 $11 Qc7 20. Nb3) 19... Nxe4 $15 {[%emt 0:00:00]} 20. Rad1 {[%emt 0:00:16]} c5 {[%emt 0:00:00] Wards off Rd4} 21. Nf4 {[%emt 0:06:05]} (21. Bf4 $15 Rad8 22. Bxd6 (22. Rxd6 Nxd6 23. Rxd6 Bxf3 $17) 22... Rxd6 23. Re3 Rxd1+ 24. Qxd1) 21... Rad8 $17 {[%emt 0:00:00]} 22. Nd5 {[%emt 0:01:19]} Bxd5 {[%emt 0:00:00]} 23. Rxd5 {[%emt 0:00:08] [#] Strongly threatening Qxe4.} Nf6 {[%emt 0:00:00]} 24. R5d2 {[%emt 0:00:23]} Qc7 {[%emt 0:00:00] Inhibits Bc6.} 25. b3 {[%emt 0:04:09]} Rd7 {[%emt 0:00:00]} (25... c4 $15 {might be stronger.} 26. bxc4 bxc4) 26. a4 {[%emt 0:02:03]} Red8 {[%emt 0:00:00]} (26... bxa4 $15 27. bxa4 c4) 27. axb5 {[%emt 0:00:13]} axb5 {[%emt 0:00:00]} 28. Be2 {[%emt 0:00:53]} b4 {[%emt 0:00:00][%cal Of6d5]} 29. Kf1 {[%emt 0:01:57]} Bf8 {[%emt 0:00:00]} 30. Rxd7 {[%emt 0:00:38]} Rxd7 {[%emt 0:00:00]} 31. Rxd7 {[%emt 0:00:23]} Nxd7 {[%emt 0:00:00]} 32. g3 {[%emt 0:01:52]} Ne5 {[%emt 0:00:58]} 33. Qe4 {[%emt 0:00:26]} Qc6 {[%emt 0:01:43]} 34. Bd3 {[%emt 0:00:42]} Qxe4 {[%emt 0:03:09]} 35. Bxe4 $11 {[%emt 0:00:01][%mdl 4096] Endgame. KBB-KBN} g6 {[%emt 0:00:36]} 36. f4 {[%emt 0:00:06]} Nd7 {[%emt 0:00:05]} 37. Ke2 {[%emt 0:00:06]} f5 {[%emt 0:00:54]} 38. Bc6 {[%emt 0:00:46]} Nb6 {[%emt 0:00:15]} 39. Kd3 {[%emt 0:00:40]} Kf7 {[%emt 0:00:11]} 40. h4 {[%emt 0:00:45]} Be7 {[%emt 0:00:23]} 41. Bf2 {[%emt 0:30:34]} Kf6 {[%emt 0:30:15]} 42. Be3 {[%emt 0:00:11]} Bd6 {[%emt 0:00:07]} 43. Bc1 {[%emt 0:00:00]} Ke7 {[%emt 0:00:00]} 44. Bf3 {[%emt 0:00:00]} Ke6 {[%emt 0:00:00]} 45. h5 {[%emt 0:00:00] The position is equal.} gxh5 {[%emt 0:00:00]} 46. Bxh5 {[%emt 0:00:00]} Be7 {[%emt 0:00:00]} 47. Bf3 {[%emt 0:00:00]} Bf6 {[%emt 0:00:00]} 48. Be3 {[%emt 0:00:00]} Kd6 {[%emt 0:00:00]} 49. Bf2 {[%emt 0:00:00]} c4+ {[%emt 0:00:00]} 50. bxc4 {[%emt 0:00:00]} Na4 {[%emt 0:00:00]} 51. c5+ {[%emt 0:00:00]} Nxc5+ {[%emt 0:00:00]} 52. Kc4 {[%emt 0:00:00]} Ne4 {[%emt 0:00:00]} 53. Bxe4 {[%emt 0:00:39]} fxe4 {[%emt 0:00:00] KB-KB} 54. g4 {[%emt 0:00:03]} Ke6 {[%emt 0:00:00]} 55. Kxb4 {[%emt 0:00:58]} Kd5 {[%emt 0:00:00]} 56. Kb3 {[%emt 0:01:54]} Bd4 {[%emt 0:00:00]} 57. Bxd4 {[%emt 0:00:23]} Kxd4 {[%emt 0:00:00]} 58. Kc2 {[%emt 0:00:22]} e3 {[%emt 0:00:00]} 59. f5 {[%emt 0:00:21] [#] f6 would kill now.} Ke5 {[%emt 0:00:00]} 60. Kd3 {[%emt 0:00:04]} h5 {[%emt 0:00:00] Weighted Error Value: White=0.09 (flawless) /Black=0.07 (flawless) .  Mistake:       	White=2     	Black=2      Inaccurate:     	White=2     	Black=3      OK:         	White=27    	Black=24     Best:        	---       	Black=3} 1/2-1/2

[Event "Serbian-ch Semifinal 2024"]
[Site "Paracin"]
[Date "2024.02.05"]
[Round "1.4"]
[White "Nestorovic, Nikola"]
[Black "Gagic, Milan A"]
[Result "1-0"]
[ECO "C02"]
[WhiteElo "2465"]
[BlackElo "2241"]
[Annotator "TA"]
[PlyCount "119"]
[EventDate "2024.02.04"]
[EventType "swiss"]
[EventCountry "SRB"]
[SourceTitle "playchess.com"]
[Source "ChessBase"]
[SourceQuality "1"]
[TimeControl "40/5400+30:1800+30"]

{[%evp 39,119,-4,12,0,0,0,0,-13,0,-29,-23,-45,-33,-22,-54,-112,-127,-110,-85,-124,0,0,0,0,131,125,106,47,52,0,0,0,0,0,0,0,0,0,50,40,44,43,60,63,279,279,265,269,226,234,299,222,233,216,257,236,1403,1185,1022,503,5311,5311,5311,5304,5186,5186,5143,5128,5097,5088,5073,5073,5008,4919,29978,4728,4642,4242,1555,1271,2386,2238]} 1. e4 {[%emt 0:00:04]} e6 {[%emt 0:00:41]} 2. d4 {[%emt 0:00:07]} d5 {[%emt 0:00:05]} 3. e5 {[%emt 0:00:04]} c5 {[%emt 0:00:33]} 4. c3 {[%emt 0:00:06]} Nc6 {[%emt 0:00:05]} 5. Nf3 {[%emt 0:00:05]} Bd7 {[%emt 0:00:41]} 6. Be2 {[%emt 0:00:36]} Nge7 {[%emt 0:02:06]} 7. Na3 {[%emt 0:01:32]} cxd4 {[%emt 0:02:29]} 8. cxd4 {[%emt 0:00:15]} Nf5 {[%emt 0:02:22]} 9. Nc2 {[%emt 0:01:04]} Be7 {[%emt 0:01:46]} 10. O-O {[%emt 0:02:05]} O-O {[%emt 0:00:42]} 11. Bd3 {[%emt 0:02:13]} h6 {[%emt 0:03:56]} 12. Bd2 {[%emt 0:07:33]} a5 {[%emt 0:04:33]} 13. g4 {[%emt 0:10:07]} Nh4 {[%emt 0:01:32]} 14. Nxh4 {[%emt 0:00:17]} Bxh4 {[%emt 0:00:03]} 15. f4 {[%emt 0:00:39]} f6 {[%emt 0:06:28]} 16. Kh1 {[%emt 0:02:23]} fxe5 {[%emt 0:19:45]} 17. dxe5 {[%emt 0:00:11]} g5 {[%emt 0:07:30]} 18. Ne1 {[%emt 0:02:08]} gxf4 {[%emt 0:06:03]} 19. Nf3 {[%emt 0:00:17]} Bg5 {[%emt 0:05:48]} 20. Qe1 {[%emt 1:08:44]} Qe8 {[%emt 0:07:30]} 21. h4 {[%emt 0:00:00]} Be7 {[%emt 0:00:04]} 22. a3 {[%emt 0:00:00]} Qf7 {[%emt 0:07:10]} 23. Rc1 {[%emt 0:00:00]} Kh8 {[%emt 0:01:50]} 24. Qf2 {[%emt 0:00:00]} (24. Nh2 $5) 24... Qg7 {[%emt 0:00:58]} 25. Rg1 {[%emt 0:00:00]} Be8 $1 {[%emt 0:02:00]} (25... Nxe5 $2 26. Nxe5 Bf6 (26... Qxe5 $2 27. Bc3 $18) 27. Nxd7 Qxd7 28. Bxf4 $18 (28. Qxf4 Bg7 $18)) 26. g5 {[%emt 0:00:00]} Bh5 {[%emt 0:04:18]} (26... Nxe5 $2 27. gxh6 Qxh6 28. Nxe5 $18) 27. Rce1 {[%emt 0:00:00]} (27. gxh6 $15 Bxf3+ (27... Qxh6 28. Ng5 $15) 28. Qxf3 Qxh6 29. Rg4) 27... Bc5 $17 {[%emt 0:03:57]} (27... Bxf3+ 28. Qxf3 Bc5 (28... Nxe5 $2 29. Rxe5 Qxe5 30. Qh5 $18) (28... hxg5 $2 29. Qh5+ Kg8 30. Rxg5 $18) 29. Qh5 Bxg1 30. Rxg1 $11) 28. Qxc5 {[%emt 0:00:00]} Bxf3+ {[%emt 0:00:04]} 29. Kh2 {[%emt 0:00:00]} Be4 {[%emt 0:03:59]} (29... Nxe5 $2 30. Bc3 Rfc8 31. gxh6 (31. Bxe5 Rxc5 32. Bxg7+ Kxg7 $11) 31... Rxc5 32. hxg7+ (32. Bxe5 Qxe5 33. Rxe5 Rac8 $16) 32... Kg8 33. Rxe5 $18 (33. Bxe5 b6 $18)) (29... d4 $1 $17 {...Bd5 is the strong threat.} 30. Rgf1 Bd5 (30... b6 31. Qc2 $11) 31. Bxf4 (31. Rxf4 $2 Nxe5 32. Be4 hxg5 $19) 31... Rac8) 30. Bxe4 $11 {[%emt 0:00:00]} dxe4 {[%emt 0:06:32]} 31. Rxe4 {[%emt 0:00:00]} f3 {[%emt 0:00:00]} (31... hxg5 $11 32. Rxf4 (32. Rxg5 $2 {too greedy.} Qh7 $19) 32... gxf4 33. Rxg7 Kxg7) 32. gxh6 $16 {[%emt 0:00:00]} Qh7 {[%emt 0:00:00] [#]} 33. Reg4 {[%emt 0:00:00]} (33. Qc4 $1 $16) 33... Qd3 $1 $14 {[%emt 0:00:00]} ({Don't go for} 33... f2 $2 34. Rf1 $18) 34. Qe3 {[%emt 0:00:00]} (34. Be1 $14) 34... Rad8 $11 {[%emt 0:00:56]} 35. Qxd3 {[%emt 0:00:00]} Rxd3 {[%emt 0:00:04]} 36. Bc3 {[%emt 0:00:00]} b5 {[%emt 0:00:37]} 37. Rf1 {[%emt 0:00:00]} Re3 {[%emt 0:00:53]} 38. Kg3 {[%emt 0:00:39]} b4 {[%emt 0:00:41]} (38... f2+ $11 39. Kg2 Re2) 39. axb4 $14 {[%emt 0:00:14]} axb4 {[%emt 0:00:16]} 40. Bxb4 {[%emt 0:02:34]} Nxb4 {[%emt 0:00:29]} 41. Rxb4 {[%emt 0:30:06]} Rxe5 $2 {[%emt 0:30:54]} (41... Kh7 $14) 42. Rxf3 $18 {[%emt 0:00:48]} Rg8+ {[%emt 0:00:00] [#]} 43. Kf2 $1 {[%emt 0:00:00]} Re8 {[%emt 0:00:00]} 44. Rf6 {[%emt 0:00:00]} Rc5 {[%emt 0:00:00]} 45. Kf3 {[%emt 0:00:00]} Rc1 {[%emt 0:00:00]} 46. Ke2 {[%emt 0:00:00]} Rh1 {[%emt 0:00:00]} 47. Rf7 {[%emt 0:00:00]} Rg1 $2 {[%emt 0:00:00]} (47... Rg8 48. Kd3 Rh3+ 49. Kc2 Rc8+ 50. Kd1 Rh1+ 51. Kd2 Rg8) 48. Rbb7 $18 {[%emt 0:00:00]} Rc8 {[%emt 0:00:00]} 49. Kf2 {[%emt 0:00:00]} (49. b4 $142 Rc2+ 50. Ke3) 49... Rg6 {[%emt 0:00:00]} (49... Rcc1 $142 50. Rf8+ Rg8) 50. Rh7+ $18 {[%emt 0:00:00]} Kg8 {[%emt 0:00:00]} 51. Rhg7+ {[%emt 0:00:00]} Rxg7 {[%emt 0:00:00]} 52. hxg7 {[%emt 0:00:00]} ({Weaker is} 52. Rxg7+ Kh8 $18) 52... Rc4 {[%emt 0:00:00]} 53. Kg3 {[%emt 0:00:00]} e5 {[%emt 0:00:00]} 54. h5 {[%emt 0:00:00]} Rc6 {[%emt 0:00:00]} 55. b4 {[%emt 0:00:00]} Rh6 {[%emt 0:00:00]} 56. Kg4 {[%emt 0:00:00]} e4 {[%emt 0:00:00]} 57. Re7 {[%emt 0:00:47]} (57. Kg5 $142 Rd6 58. h6 Rd5+ 59. Kf4 Rd8 60. Kxe4 Re8+ 61. Kf5 Rd8 62. Rb6) 57... e3 {[%emt 0:00:00]} 58. Rxe3 {[%emt 0:00:33]} Kxg7 {[%emt 0:00:00]} 59. b5 {[%emt 0:00:33]} Kf6 {[%emt 0:00:00]} 60. b6 {[%emt 0:00:31]} 1-0

[Event "Serbian-ch Semifinal 2024"]
[Site "Paracin"]
[Date "2024.02.05"]
[Round "1.5"]
[White "Ravic, Nenad"]
[Black "Sedlak, Nikola"]
[Result "1/2-1/2"]
[ECO "C13"]
[WhiteElo "2202"]
[BlackElo "2463"]
[Annotator "TA"]
[PlyCount "48"]
[EventDate "2024.02.04"]
[EventType "swiss"]
[EventCountry "SRB"]
[SourceTitle "playchess.com"]
[Source "ChessBase"]
[SourceQuality "1"]
[TimeControl "40/5400+30:1800+30"]

{[%evp 16,48,0,11,0,0,0,-43,100,93,174,168,162,133,160,159,165,166,177,170,227,10,17,8,8,20,6,0,0,0,15,0,0,0,57]} 1. e4 {[%emt 0:04:52]} e6 {[%emt 0:00:15]} 2. d4 {[%emt 0:00:05]} d5 {[%emt 0:00:21]} 3. Nc3 {[%emt 0:00:03]} Nf6 {[%emt 0:00:28]} 4. Bg5 {[%emt 0:00:04]} dxe4 {[%emt 0:00:36]} 5. Nxe4 {[%emt 0:00:05]} Be7 {[%emt 0:00:19]} 6. Nxf6+ {[%emt 0:08:35]} Bxf6 {[%emt 0:00:27]} 7. Bxf6 {[%emt 0:00:06]} Qxf6 {[%emt 0:00:08]} 8. Nf3 {[%emt 0:00:11]} O-O {[%emt 0:01:57]} 9. Qd2 {[%emt 0:01:36]} c5 {[%emt 0:06:32]} 10. O-O-O {[%emt 0:01:10]} Rd8 {[%emt 0:01:55]} 11. Bd3 {[%emt 0:05:28]} Nc6 {[%emt 0:19:45]} (11... cxd4 $15 {keeps the upper hand.} 12. Be4 h6) 12. dxc5 $16 {[%emt 0:04:21]} e5 {[%emt 0:02:48]} (12... b6 $16) 13. Qg5 $18 {[%emt 0:14:04]} Be6 {[%emt 0:07:05]} 14. a3 {[%emt 0:01:42]} Bd5 {[%emt 0:02:01]} 15. Qxf6 {[%emt 0:01:34]} gxf6 {[%emt 0:00:09]} 16. Rhe1 {[%emt 0:00:15]} Ne7 {[%emt 0:03:33]} 17. Be4 {[%emt 0:01:19]} a5 {[%emt 0:01:10]} (17... Bxe4 {was worth a try.} 18. Rxd8+ (18. Rxe4 Rxd1+ 19. Kxd1 Rc8 $18) 18... Rxd8) 18. b4 $2 {[%emt 0:10:19] [#]} ({Better is} 18. Bxd5 $18 Nxd5 19. Nd2) 18... axb4 $11 {[%emt 0:02:54] The position is equal.} 19. axb4 {[%emt 0:00:14] aiming for Rd2.} Ra1+ $1 {[%emt 0:00:40]} 20. Kb2 {[%emt 0:00:05]} Ra2+ {[%emt 0:00:07]} 21. Kc3 {[%emt 0:02:43] [#] Black must now prevent Bxd5.} Ra3+ {[%emt 0:00:14]} 22. Kb2 {[%emt 0:00:04]} Ra2+ {[%emt 0:00:06]} 23. Kc3 {[%emt 0:00:07] Threatens to win with Bxd5.} Ra3+ {[%emt 0:00:08]} 24. Kb2 {[%emt 0:00:06]} Ra2+ {[%emt 0:00:07] Black escapes into a draw.   Weighted Error Value: White=0.33/Black=0.27 (precise) .  Missed win:     	White=1     	---        Mistake:       	---       	Black=3      Inaccurate:     	White=1     	---        OK:         	White=5     	Black=3      Best:        	White=4     	Black=4      Strong:       	---       	Black=1} 1/2-1/2